Cogmind - Beta 15 @@@ ROGUE MODE // 2025.07.25 @ 07:26:14 Player: BVrutally Odd Result: Destroyed by as-28674 with Assembled Heavy Rifle Performance ------------- Evolutions (0) 0 Regions Visited (2) 400 Robots Destroyed (16) 80 Value Destroyed (344) 344 Prototype IDs (0) 0 Alien Tech Used (0) 0 Bonus (0) 0 TOTAL SCORE: 824 Bonus ------- None Cogmind --------- Core Integrity 0/250 Matter 296/300 Energy 100/100 System Corruption 0% Temperature Cool (0) Movement Core (50) Location -10/Mines Parts ------- > --- POWER (1) -------- (None) > --- PROPULSION (2) --- (None) > --- UTILITY (2) ------ Seismic Detector > --- WEAPON (2) ------- Light Assault Rifle Light Assault Rifle > --- INVENTORY (5) ---- Structural Scanner Small Laser Light Assault Rifle Heavy Assault Rifle Grenade Launcher Peak State ------------ > --- POWER ------------ (None) > --- PROPULSION ------- (None) > --- UTILITY ---------- Structural Scanner > --- WEAPON ----------- Light Assault Rifle Light Assault Rifle > --- INVENTORY -------- Light Assault Rifle [Rating: 3] Favorites ----------- Power None Propulsion None Utility Seismic Detector Device Seismic Detector Weapon Light Assault Rifle Energy Gun Small Laser Ballistic Gun Light Assault Rifle Launcher Grenade Launcher Build | -11 -10 -10 ------- Run | Yrd Mat Min Slots Evolved . | . . . Power . | . . . Propulsion . | . . . Utility . | . . . Weapon . | . . . Parts Attached 9 | 2 6 1 Power . | . . . Engine . | . . . Core . | . . . Reactor . | . . . Propulsion . | . . . Treads . | . . . Leg . | . . . Wheel . | . . . Hover . | . . . Flight . | . . . Utility 2 | . 2 . Device 2 | . 2 . Storage . | . . . Processor . | . . . Hackware . | . . . Protection . | . . . Artifact . | . . . Weapon 7 | 2 4 1 Energy Gun 2 | . 2 . Energy Cannon . | . . . Ballistic Gun 4 | 2 2 . Ballistic Cannon . | . . . Launcher 1 | . . 1 Special Weapon . | . . . Impact Weapon . | . . . Slashing Weapon . | . . . Piercing Weapon . | . . . Special Melee Weapon . | . . . Unidentified Prototypes . | . . . Parts Lost 4 | . 4 . Power . | . . . Propulsion . | . . . Utility . | . . . Weapon 4 | . 4 . Highest Loss Streak 2 | . 2 . To Critical Strikes . | . . . Average Backups 2 | . . 4 Power . | . . . Propulsion . | . . . Utility . | . . 1 Weapon 1 | . . 3 Tool/Special . | . . . Unused Backups 3 | . . 3 Power . | . . . Propulsion . | . . . Utility . | . . . Weapon 3 | . . 3 Tool/Special . | . . . Average Slot Usage (%) 33 | . 27 42 Device 6 | . 1 14 Energy Gun 4 | . 7 . Ballistic Gun 22 | . 19 28 Peak Build Rating 3 | 2 3 3 Average Rating 2 | 1 2 3 On Entrance 1 | . 2 3 Naked Turns 3 | . 3 . Heaviest Build 3 | 3 3 3 Greatest Support 3 | 3 3 3 Greatest Overweight (x) . | . . . Average Overweight (x) . | . . . Largest Inventory Capacity 5 | 5 5 5 Average Capacity 5 | 5 5 5 Most Carried 5 | . 3 5 Average Carried 2 | . . 4 Final Capacity 5 | 5 5 5 Final Carried 5 | . 3 5 Class Distribution -------------------- 100% | Mutant Dominant Class ---------------- Mutant | -10/Materials Mutant | -10/Mines Resources | -11 -10 -10 ----------- Run | Yrd Mat Min Matter Collected 454 | 175 223 56 Remotely . | . . . Salvage Created 386 | . 378 8 Parts 31 | . 26 5 Haulers Intercepted . | . . . Recyclers Shooed . | . . . Parts Field Recycled . | . . . Retrieved Matter . | . . . Parts Self-Destructed . | . . . Prevented . | . . . Kills | -11 -10 -10 ------- Run | Yrd Mat Min Combat Hostiles Destroyed 13 | . 10 3 Guns 10 | . 10 . AOE 3 | . . 3 Classes Destroyed 5 | . 4 1 Worker 1 | . . 1 Operator 1 | . 1 . Watcher 1 | . 1 . Swarmer 6 | . 3 3 Grunt 7 | . 7 . Best Kill Streak 4 | . 3 4 Combat Bots Only 3 | . 3 3 Max Kills in Single Turn 2 | . 1 2 Gunslinging . | . . . Exploded 1 | . . 1 Melee . | . . . Uniques/NPCs Destroyed . | . . . Combat | -11 -10 -10 -------- Run | Yrd Mat Min Hostile Shots Fired 75 | . 65 10 Missed 17 | . 16 1 Hits 58 | . 49 9 Projectile 58 | . 49 9 Damage Taken 639 | . 549 90 Core 257 | . 205 52 Absorbed by Shields . | . . . Core Remaining (%) 100 | 100 . . Volleys Fired 73 | 3 62 8 Largest 2 | 2 2 2 Hottest 80 | 40 80 40 Shots Fired 129 | 6 110 13 Gun 126 | 6 110 10 Cannon . | . . . Launcher 3 | . . 3 Special . | . . . Kinetic 84 | 6 68 10 Thermal 23 | . 23 . Explosive 3 | . . 3 Electromagnetic 19 | . 19 . Robot Hit Streak 9 | 3 9 5 Robot Miss Streak 5 | 3 5 3 Penetration Max . | . . . Secondary Targets . | . . . Shots Hit Robots 77 | 3 66 8 Core Hits 29 | 1 22 6 Critical Kills . | . . . Critical Parts Destroyed . | . . . Critical Strikes 1 | . 1 . Corrupt 1 | . 1 . Melee Attacks . | . . . Impact . | . . . Slashing . | . . . Piercing . | . . . Sneak Attacks . | . . . Combat Hostiles . | . . . Follow-up Attacks . | . . . Damage Inflicted 1104 | 33 680 391 Guns 761 | 33 680 48 Cannons . | . . . Explosions 343 | . . 343 Melee . | . . . Ramming . | . . . Kinetic 487 | 33 406 48 Thermal 163 | . 163 . Explosive 343 | . . 343 Electromagnetic 111 | . 111 . Impact . | . . . Slashing . | . . . Piercing . | . . . Highest Corruption . | . . . Average Corruption . | . . . Corruption Purged . | . . . Corruption Blocked . | . . . Overload Shots . | . . . Overflow Damage 5 | . . 5 Projectiles . | . . . Explosions 5 | . . 5 Melee . | . . . Knockbacks . | . . . Impact . | . . . Kinetic . | . . . Secondary . | . . . Self-Inflicted Damage . | . . . Shots . | . . . Rammed . | . . . Targets Rammed . | . . . Kicked . | . . . Crushed . | . . . Highest Temperature 27 | . 27 . Average Temperature 6 | . 6 . Received Heat Transfer 258 | . 258 . Siege Activations . | . . . Martial Activations . | . . . Shielding Activations . | . . . Robots Disrupted . | . . . Combat Hostiles . | . . . Robots Corrupted . | . . . Combat Hostiles . | . . . Parts Fried . | . . . Impact Corruptions . | . . . Robots Melted . | . . . Combat Hostiles . | . . . Parts Melted . | . . . Heat Transferred 375 | . 375 . Parts Sabotaged . | . . . Parts Stolen . | . . . Parts Stripped . | . . . Power Chain Reactions . | . . . Alert | -11 -10 -10 ------- Run | Yrd Mat Min Maximum Alert Level . | . . . Low Security (%) 100 | 100 100 100 Level 1 . | . . . Level 2 . | . . . Level 3 . | . . . Level 4 . | . . . Level 5 . | . . . High Security . | . . . Max Security . | . . . Peak Influence 144 | . 144 92 Initial 55 | . . 55 Average 46 | . 53 41 Influence Increases 480 | . 363 117 Destroy 0b10 Robot/C 260 | . 200 60 Destroy 0b10 Robot/NC 15 | . 10 5 Destroy Leader 52 | . 42 10 Successful Hack 6 | . 6 . Destroy Structure 12 | . . 12 Partial Spotted 30 | . 30 . Lose Combat Pursuer 105 | . 75 30 Influence Decreases 468 | . 219 249 Entered New Map 89 | . . 89 Time Decay 339 | . 179 160 Lost Part 40 | . 40 . Squads Dispatched 2 | . 2 . Investigation . | . . . Extermination . | . . . Reinforcement 2 | . 2 . Assault . | . . . Garrison . | . . . Intercept . | . . . Searches Triggered . | . . . Construction Impeded . | . . . Haulers Reinforced . | . . . Active Scanning Responses . | . . . Cargo Convoy Interrupts . | . . . Stealth | -11 -10 -10 --------- Run | Yrd Mat Min Distress Signals 3 | . 3 . Communications Jammed . | . . . Distress Signals . | . . . Times Spotted 36 | . 29 7 Peak Tracking Total 7 | . 7 3 Tactical Retreats 4 | . 3 1 Traps | -11 -10 -10 ------- Run | Yrd Mat Min Traps Triggered . | . . . Indirectly . | . . . Trap Hack Attempts . | . . . Triggered . | . . . Disarmed . | . . . Reprogrammed . | . . . Reused . | . . . Traps Extracted . | . . . Installed . | . . . Triggered . | . . . Machines | -11 -10 -10 ---------- Run | Yrd Mat Min Machines Disabled . | . . . Max in Single Turn . | . . . Machines Repaired . | . . . Machines Dismantled . | . . . Machines Sabotaged . | . . . Overloaded Fab Kills . | . . . Hacking | -11 -10 -10 --------- Run | Yrd Mat Min Machines Accessed 2 | . 2 . Terminals 2 | . 2 . Fabricators . | . . . Repair Stations . | . . . Recycling Units . | . . . Scanalyzers . | . . . Garrison Access . | . . . Total Hacks 5 | . 5 . Successful 2 | . 2 . Failed 3 | . 3 . Catastrophic 1 | . 1 . Database Lockouts . | . . . Manual 3 | . 3 . Terminals 5 | . 5 . Fabricators . | . . . Repair Stations . | . . . Recycling Units . | . . . Scanalyzers . | . . . Garrison Access . | . . . Terminal Hacks 1 | . 1 . Locate Traps 1 | . 1 . Fabricator Hacks . | . . . Repair Station Hacks . | . . . Recycling Unit Hacks . | . . . Scanalyzer . | . . . Garrison Access Hacks . | . . . Unauthorized Hacks 1 | . 1 . Terminals 1 | . 1 . Operators 1 | . 1 . Fabricators . | . . . Repair Stations . | . . . Recycling Units . | . . . Scanalyzers . | . . . Garrison Access . | . . . Data Cores Recovered . | . . . Used . | . . . Hacking Detections 2 | . 2 . Full Trace Events . | . . . Feedback Events . | . . . Feedback Blocked . | . . . Robot Schematics Acquired . | . . . Robots Built . | . . . Authchips . | . . . Time . | . . . Total Robot Build Rating . | . . . Part Schematics Acquired . | . . . Parts Built . | . . . Authchips . | . . . Time . | . . . Total Part Build Rating . | . . . Parts Repaired . | . . . Time . | . . . Parts Recycled . | . . . Recycled Matter . | . . . Retrieved Matter . | . . . Retrieved Components . | . . . Parts Scanalyzed . | . . . Part Schematics Acquired . | . . . Parts Damaged . | . . . Bothacking | -11 -10 -10 ------------ Run | Yrd Mat Min Used RIF Installer . | . . . Robots Hacked . | . . . Non-combat . | . . . Combat . | . . . Robot Hacks Applied . | . . . Relay Couplers Released . | . . . Fabnet Peak Effective % . | . . . Robots Rewired . | . . . Allies Hacked . | . . . Hacks Repelled . | . . . Allies | -11 -10 -10 -------- Run | Yrd Mat Min Total Allies . | . . . Largest Group . | . . . Highest-Rated Group . | . . . Highest-Rated Ally . | . . . Total Orders . | . . . Ally Attacks . | . . . Total Damage . | . . . Kills . | . . . Allies Corrupted . | . . . Allies Melted . | . . . Intel | -11 -10 -10 ------- Run | Yrd Mat Min Active Infowar (turns) 361 | . 40 321 Structural 1 | . 1 . Seismic 360 | . 39 321 Robot Analysis Total . | . . . Derelict Logs Recovered 2 | . . 2 Drone Launches . | . . . Drone Recoveries . | . . . Exploration | -11 -10 -10 ------------- Run | Yrd Mat Min Turns Passed 769 | 34 414 321 Spaces Moved 958 | 45 331 582 Core 958 | 45 331 582 Treads . | . . . Legs . | . . . Wheels . | . . . Hover . | . . . Flight . | . . . Fastest Speed 50 | 50 50 50 Average Speed 50 | 50 50 50 Slowest Speed 50 | 50 50 50 Overloaded Moves . | . . . Propulsion Burnouts . | . . . Robots Hopped . | . . . Potential Cave-ins . | . . . Cave-ins Triggered . | . . . Exploration Rate (%) 51 | 3 55 96 Regions Visited 2 Branch Regions 1 Pre-discovered Areas 1 | . . 1 Known Exits Taken . | . . . Unknown Exits Taken 2 | 1 1 . Scrap Searched 3 | . . 3 Spaces Dug . | . . . Terrain Destroyed 13 | . . 13 Melee . | . . . Projectile . | . . . AOE 13 | . . 13 Terrain Rammed . | . . . Walls Destroyed . | . . . Machines Disabled . | . . . Actions | -11 -10 -10 --------- Run | Yrd Mat Min Total 1124 | 49 474 601 Wait 80 | . 73 7 Move 956 | 44 330 582 Hop . | . . . Pick Up 5 | . 3 2 Fast Attach 7 | 2 5 . Attach . | . . . Detach . | . . . Swap 3 | . 1 2 Drop . | . . . Fire 73 | 3 62 8 Melee . | . . . Ram . | . . . Kick . | . . . Crush . | . . . Escape Stasis . | . . . Rewire . | . . . Trap . | . . . Miscellaneous . | . . . Route ------- -11/Scrapyard -10/Materials (discovered 2 exits: [*Mat] / [*Min]) -10/Mines (discovered 2 exits: [*Mat x2]) History --------- Turn | Location | Event 8 | -11/Scrapyard | Discovered new exit (range 16) 35 | -11/Scrapyard | Entered Materials 142 | -10/Materials | Discovered new exit (range 7) 284 | -10/Materials | Discovered new exit (range 10) 303 | -10/Materials | Build established: Mutant 305 | -10/Materials | Core integrity fell below 50% 354 | -10/Materials | Core integrity fell below 20% 449 | -10/Materials | Entered Mines 450 | -10/Mines | Learned location of Storage (-9) 488 | -10/Mines | Learned Materials emergency access door positions 494 | -10/Mines | Learned Materials security intel 521 | -10/Mines | Joined a pair of Derelicts in attacking an 0b10 outpost 672 | -10/Mines | Discovered new exit (range 9) 710 | -10/Mines | YI-UF0 nonchalantly dropped a Grenade Launcher on the ground 731 | -10/Mines | Discovered new exit (range 13) 764 | -10/Mines | Excavation squad dispatched 764 | -10/Mines | A large section of the Mines collapsed 770 | -10/Mines | Destroyed by as-28674 with Assembled Heavy Rifle Last Messages --------------- 00581_ K-01 Serf collects debris. 00631_ R-06 Scavenger collects Lgt. Assault Rifle. 00632_ U-05 Engineer builds a Wall. 00634_ U-05 Engineer lays Concrete. 00635_ R-06 Scavenger collects Lgt. Ion Engine. 00635_ U-05 Engineer lays Concrete. 00638_ K-01 Serf collects debris. 00652_ Acquired 1 matter. 00653_ Acquired 49 matter. 00668_ T-07 Excavator is excavating. 00672_ EXIT=FOUND 00676_ T-07 Excavator is excavating. 00690_ K-01 Serf cleans the Core Extractor. 00710_ YI-UF0 nonchalantly drops a Grenade Launcher on the ground. 00731_ EXIT=FOUND 00764_ ALERT: Suspicious cave-in, suspected derelict activity in mines. Dispatching escorted excavation squad. Map ----- +----------------------------------------------------+ | | | | | | | | | | | | | | | ?????????????????????????????????????????????????? | | ??###????????????????????????????????????????????? | | ?## ##??????????????????????????????????????????? | | ?# ##?????????????????????????????????????????? | | ?? #?????????????????????????????????????????? | | ??# #???????????????????????###???????????????? | | ??# ##?????????????????????## #??????????????? | | ??# ###???????????????????# #?????????????? | | ??## ##??????????????????# ######???????? | | ??## ##?????????????????# ##??????? | | ??# ##????????????###??# #???#### | | ??# #??????####?? #???# #??## # | | ??## #?????## ##?# #?????# #???# | | ???##### ##????# ### #?????### ##??# | | ???????## ###??# ## #???????# #### | | ???###?## #### # #?###???# ## | | ??## ## ######## ##??# | | ?## # #a# ##?# | | ?# ## ## ##@# ### ] | | ?# ###### ### ####### | | ?# ##?#### #?#####????# | | ?## #??# #??????????## ###### | | ??## ##?# ####???????????# ##????## | | ???## ### #??????????????## #??????### | | ????# #???????????????# ##????????# | | ???## ####???????????????# ##?????????# | | ??## """ ##??????????????????## ############## | | ?## """ < #??????????????####??####??# [%! | | ?# """ #?????????????## ##???????#!######### | | ?# #?????????????# #???????# #???????? | | ?## #### ##?????????????# ######### #######?? | | ??####??####??????????????# #?? | | ???######?????????????????# ##### #?? | | ??##"*%"##????????????????# """ ######???# #?? | | ??#[[%!!]#???????????????## """ ##????????# #?? | | ??#!!* [!#??????????????## """ #?????????# #?? | | ??## ##??????????##### #?????????# #?? | | ??###++###?????????## #?????????# #?? | | ??# !%= #####????## ##???####### #?? | | ?## = # ##??## ## ##????# #?? | | ## ##### #??# #######?????# ##### #?? | | # ### #??# ## ##???????????# #??## ##? | | # #??##??## ##???????????# #### ## | +----------------------------------------------------+ Best States ------------- Heat Dissipation 25 Energy Generation 5 Energy Capacity 100 Matter Stores 300 Matter Capacity 300 Sight Range 16 Terrain Scan Density 10 Evasion (%) 50 Item Schematics ----------------- None Robot Schematics ------------------ None Fabricated ------------ Nothing Repaired ---------- Nothing Alien Tech Used ----------------- None Achievements -------------- None Challenges ------------ None Game ------ Seed ResetThiefStorm Manual? 0 Play Time 00:09:40 Cumulative 465.5 hours Start 2025.07.25 @ 07:19:20 End 2025.07.25 @ 07:26:14 Sessions 1 Manual Loads 0 Difficulty Rogue Special Mode None Game No. 202 Rogue 119 Adventurer 32 Explorer 51 Win Type - Total 51 Types 25/6/9/1/0/2/5/1/1/1 Lore% 95 Gallery% 91 Achievement% 85 Wizard Run 0 Options --------- Layout 2 ASCII 0 Keyboard 0 Movement Mouse Keybinds 0 Fullscreen 1 Font 32/Tamsyn Map View 50x44 Zoom Use 0% Tactical HUD 1 Map Filters NONE Filters NONE Steam 1 RUN: 5d348b7b-842f-4267-98cd-3961f16c7e29